fUST/lending_fUST_20250817
["ID","MTS","AMOUNT","RATE_DAILY","PERIOD"]
[379702326,1755376245409,-480.0,0.00020161,2]
[379702328,1755376245419,-480.0,0.00020161,2]
[379702330,1755376245429,-480.0,0.00020161,2]
[379702332,1755376245438,-460.50939825,0.00020161,2]
[379702334,1755376245449,-480.0,0.00020161,2]
[379702336,1755376245458,-460.44354127,0.00020161,2]
[379702338,1755376245468,-480.0,0.00020161,2]
[379702340,1755376245477,-967.63,0.00020161,2]
[379702342,1755376245487,-693.92,0.00020161,2]
[379702344,1755376245497,-480.0,0.00020161,2]
[379702346,1755376245507,-480.0,0.00020161,2]
[379702348,1755376245516,-850.07,0.00020161,2]
[379702350,1755376245526,-480.0,0.00020161,2]
[379702352,1755376245535,-480.0,0.00020161,2]
[379702354,1755376245544,-460.0,0.00020161,2]
[379702356,1755376245554,-460.0,0.00020161,2]
[379702358,1755376245563,-461.36829929,0.00020161,2]
[379702360,1755376245573,-499.9178857,0.00020161,2]
[379702362,1755376245582,-480.0,0.00020161,2]
[379702364,1755376245591,-480.0,0.00020161,2]
[379702366,1755376245601,-480.0,0.00020161,2]
[379702368,1755376245610,-480.0,0.00020161,2]
[379702370,1755376245619,-480.0,0.00020161,2]
[379702372,1755376245629,-533.46591847,0.00020161,2]
[379702374,1755376245640,-460.0,0.00020161,2]
[379702376,1755376245649,-480.0,0.00020161,2]
[379702378,1755376245658,-480.0,0.00020161,2]
[379702380,1755376245668,-480.0,0.00020161,2]
[379702382,1755376245677,-480.0,0.00020161,2]
[379702384,1755376245686,-480.0,0.00020161,2]
[379702386,1755376245696,-480.0,0.00020161,2]
[379702388,1755376245705,-480.0,0.00020161,2]
[379702390,1755376245714,-480.0,0.00020161,2]
[379702392,1755376245723,-460.0,0.00020161,2]
[379702394,1755376245733,-480.0,0.00020161,2]
[379702396,1755376245742,-480.0,0.00020161,2]
[379702398,1755376245751,-480.0,0.00020161,2]
[379702400,1755376245761,-480.0,0.00020161,2]
[379702402,1755376245771,-480.0,0.00020161,2]
[379702405,1755376245781,-480.0,0.00020161,2]
[379702407,1755376245790,-480.0,0.00020161,2]
[379702409,1755376245799,-480.0,0.00020161,2]
[379702410,1755376245808,-480.0,0.00020161,2]
[379702412,1755376245817,-480.0,0.00020161,2]
[379702414,1755376245826,-545.50796476,0.00020161,2]
[379702416,1755376245836,-480.0,0.00020161,2]
[379702419,1755376245846,-480.0,0.00020161,2]
[379702421,1755376245856,-460.0,0.00020161,2]
[379702423,1755376245866,-480.0,0.00020161,2]
[379702425,1755376245875,-480.0,0.00020161,2]
[379702427,1755376245884,-480.0,0.00020161,2]
[379702428,1755376245894,-610.74041562,0.00020161,2]
[379702430,1755376245904,-480.0,0.00020161,2]
[379702433,1755376245915,-480.0,0.00020161,2]
[379702435,1755376245927,-462.25592347,0.00020161,2]
[379702436,1755376245939,-480.0,0.00020161,2]
[379702439,1755376245949,-867.85,0.00020161,2]
[379702441,1755376245959,-480.0,0.00020161,2]
[379702443,1755376245969,-480.0,0.00020161,2]
[379702445,1755376245978,-480.0,0.00020161,2]
[379702447,1755376245988,-480.0,0.00020161,2]
[379702449,1755376245998,-480.0,0.00020161,2]
[379702451,1755376246008,-480.0,0.00020161,2]
[379702453,1755376246017,-480.0,0.00020161,2]
[379702455,1755376246026,-484.11392611,0.00020161,2]
[379702456,1755376246035,-480.0,0.00020161,2]
[379702458,1755376246044,-767.02,0.00020161,2]
[379702460,1755376246054,-480.0,0.00020161,2]
[379702462,1755376246063,-480.0,0.00020161,2]
[379702464,1755376246072,-480.0,0.00020161,2]
[379702466,1755376246082,-237.40837303,0.00020161,2]
[379702468,1755376246094,-480.0,0.00020161,2]
[379702470,1755376246104,-480.0,0.00020161,2]
[379702472,1755376246113,-480.0,0.00020161,2]
[379702475,1755376246123,-480.0,0.00020161,2]
[379702477,1755376246132,-500.0,0.00020161,2]
[379702479,1755376246144,-608.74,0.00020161,2]
[379702481,1755376246153,-480.0,0.00020161,2]
[379702483,1755376246165,-691.67,0.00020161,2]
[379702485,1755376246175,-480.0,0.00020161,2]
[379702487,1755376246184,-480.0,0.00020161,2]
[379702488,1755376246193,-480.0,0.00020161,2]
[379702490,1755376246202,-753.89,0.00020161,2]
[379702492,1755376246212,-460.0,0.00020161,2]
[379702495,1755376246221,-480.0,0.00020161,2]
[379702497,1755376246231,-480.0,0.00020161,2]
[379702499,1755376246242,-480.0,0.00020161,2]
[379702501,1755376246251,-421.30563951,0.00020161,2]
[379702503,1755376246260,-480.0,0.00020161,2]
[379702505,1755376246270,-480.0,0.00020161,2]
[379702507,1755376246279,-480.0,0.00020161,2]
[379702509,1755376246288,-480.0,0.00020161,2]
[379702511,1755376246297,-480.0,0.00020161,2]
[379702513,1755376246306,-1754.46,0.00020161,2]
[379702515,1755376246315,-480.0,0.00020161,2]
[379702517,1755376246324,-480.0,0.00020161,2]
[379702518,1755376246333,-480.0,0.00020161,2]
[379702520,1755376246342,-480.0,0.00020161,2]
[379702522,1755376246351,-480.0,0.00020161,2]
[379702524,1755376246361,-11458.99,0.00020161,2]
[379702526,1755376246370,-480.0,0.00020161,2]
[379702528,1755376246379,-480.0,0.00020161,2]
[379702530,1755376246389,-480.0,0.00020161,2]
[379702533,1755376246399,-480.0,0.00020161,2]
[379702534,1755376246408,-480.0,0.00020161,2]
[379702536,1755376246417,-480.0,0.00020161,2]
[379702538,1755376246426,-480.0,0.00020161,2]
[379702540,1755376246435,-480.0,0.00020161,2]
[379702542,1755376246444,-710.11,0.00020161,2]
[379702544,1755376246453,-480.0,0.00020161,2]
[379702546,1755376246462,-480.0,0.00020161,2]
[379702548,1755376246471,-480.0,0.00020161,2]
[379702550,1755376246480,-460.0,0.00020161,2]
[379702552,1755376246490,-461.23930573,0.00020161,2]
[379702554,1755376246499,-480.0,0.00020161,2]
[379702556,1755376246509,-480.0,0.00020161,2]
[379702572,1755376246649,-480.0,0.00020161,2]
[379702574,1755376246659,-500.0,0.00020161,2]
[379702576,1755376246668,-480.0,0.00020161,2]
[379702578,1755376246677,-480.0,0.00020161,2]
[379702580,1755376246686,-480.0,0.00020161,2]
[379702582,1755376246695,-629.04,0.00020161,2]
[379702584,1755376246704,-460.0,0.00020161,2]
[379702586,1755376246713,-480.0,0.00020161,2]
[379702588,1755376246723,-460.0,0.00020161,2]
[379702589,1755376246733,-480.0,0.00020161,2]
[379702591,1755376246742,-480.0,0.00020161,2]
[379702594,1755376246751,-480.0,0.00020161,2]
[379702595,1755376246760,-480.0,0.00020161,2]
[379702597,1755376246769,-480.0,0.00020161,2]
[379702599,1755376246778,-500.0,0.00020161,2]
[379702601,1755376246788,-480.0,0.00020161,2]
[379702603,1755376246797,-480.0,0.00020161,2]
[379702605,1755376246806,-620.3,0.00020161,2]
[379702607,1755376246815,-480.0,0.00020161,2]
[379702609,1755376246825,-480.0,0.00020161,2]
[379702611,1755376246834,-480.0,0.00020161,2]
[379702613,1755376246843,-9204.58,0.00020161,2]
[379702615,1755376246852,-9204.58,0.00020161,2]
[379702617,1755376246861,-480.0,0.00020161,2]
[379702619,1755376246870,-117.58956901,0.00020161,2]
[379702668,1755376247339,-362.41043099,0.00020161,2]
[379702670,1755376247349,-480.0,0.00020161,2]
[379702672,1755376247358,-721.71,0.00020161,2]
[379702674,1755376247367,-480.0,0.00020161,2]
[379702676,1755376247376,-648.15,0.00020161,2]
[379702678,1755376247386,-480.0,0.00020161,2]
[379702680,1755376247396,-480.0,0.00020161,2]
[379702682,1755376247405,-480.0,0.00020161,2]
[379702684,1755376247414,-240.80143174,0.00020161,2]
[379703023,1755376251273,204.80632435,0.00019674,2]
[379703649,1755376422124,439.45822788,0.00020058,2]
[379703650,1755376462246,1800.0,0.000201,2]
[379703652,1755376572525,180.74278482,0.0002006,2]
[379703653,1755376618665,384.52594943,0.00020058,2]
[379703654,1755376756941,4350.04957854,0.00020061,2]
[379703655,1755376815590,336.46020576,0.00020058,2]
[379703657,1755376909783,525.78646329,0.00020059,2]
[379703664,1755377006030,294.40268004,0.00020058,2]
[379703666,1755377012233,2900.03305236,0.00020059,2]
[379703669,1755377125803,1000.0,0.00020059,2]
[379703670,1755377202285,257.602345,0.00020058,2]
[379703671,1755377250224,420.6291706,0.00020058,2]
[379703672,1755377267403,1933.35536824,0.00020059,2]
[379703673,1755377317847,414.954263,0.00013699,2]
[379703675,1755377395126,225.40205191,0.00020058,2]
[379703700,1755377432501,-2183.31810187,0.00020146,2]
[379703701,1755377432512,-1200.0,0.00020146,2]
[379703702,1755377432521,-300.0,0.00020147,2]
[379703703,1755377432530,-300.0,0.00020147,2]
[379703704,1755377432539,-300.0,0.00020147,2]
[379703705,1755377432548,-300.0,0.00020147,2]
[379703706,1755377432557,-627.27,0.00020148,3]
[379703707,1755377432566,-746.75,0.00020148,3]
[379703708,1755377432575,-373.37,0.00020148,3]
[379703709,1755377432584,-186.69,0.00020148,3]
[379703710,1755377432593,-560.09,0.00020148,3]
[379703711,1755377432602,-855.84532082,0.00020148,2]
[379703802,1755377438355,-344.15467918,0.00020148,2]
[379703804,1755377438365,-500.0,0.00020157,2]
[379703806,1755377438375,-500.0,0.00020157,2]
[379703808,1755377438385,-396.11883567,0.00020157,2]
[379703810,1755377438395,-159.338,0.00020157,2]
[379703812,1755377438405,-294.85675697,0.00020157,2]
[379703814,1755377438415,-480.0,0.00020157,2]
[379703816,1755377438425,-480.0,0.00020157,2]
[379703818,1755377438435,-460.0,0.00020157,2]
[379703820,1755377438444,-714.33,0.00020157,2]
[379703822,1755377438454,-480.0,0.00020157,2]
[379703824,1755377438464,-1057.45,0.00020157,2]
[379703826,1755377438474,-480.0,0.00020157,2]
[379703828,1755377438483,-3247.78,0.00020157,2]
[379703830,1755377438493,-460.0,0.00020157,2]
[379703832,1755377438503,-460.0,0.00020157,2]
[379703834,1755377438513,-480.0,0.00020157,2]
[379703836,1755377438522,-480.0,0.00020157,2]
[379703838,1755377438532,-461.77387335,0.00020157,2]
[379703840,1755377438541,-480.0,0.00020157,2]
[379703842,1755377438550,-648.89,0.00020157,2]
[379703844,1755377438560,-462.06107763,0.00020157,2]
[379703846,1755377438569,-480.0,0.00020157,2]
[379703848,1755377438579,-480.0,0.00020158,2]
[379703850,1755377438588,-480.0,0.00020158,2]
[379703852,1755377438597,-480.0,0.00020158,2]
[379703854,1755377438607,-480.0,0.00020158,2]
[379703856,1755377438616,-480.0,0.00020158,2]
[379703858,1755377438625,-480.0,0.00020158,2]
[379703860,1755377438635,-480.0,0.00020158,2]
[379703861,1755377438644,-653.28,0.00020158,2]
[379703862,1755377438654,-480.0,0.00020158,2]
[379703863,1755377438663,-480.0,0.00020158,2]
[379703864,1755377438672,-480.0,0.00020158,2]
[379703865,1755377438682,-480.0,0.00020158,2]
[379703866,1755377438691,-480.0,0.00020158,2]
[379703867,1755377438700,-480.0,0.00020158,2]
[379703868,1755377438709,-480.0,0.00020158,2]
[379703870,1755377438724,-266.30312245,0.00020158,2]
[379703873,1755377438737,-213.69687755,0.00020158,2]
[379703874,1755377438747,-480.0,0.00020158,2]
[379703876,1755377438756,-440.0,0.00020158,2]
[379703877,1755377438765,-480.0,0.00020158,2]
[379703878,1755377438775,-480.0,0.00020158,2]
[379703879,1755377438785,-480.0,0.00020158,2]
[379703881,1755377438796,-472.00202311,0.00020158,2]
[379703883,1755377438814,-7.99797689,0.00020158,2]
[379703885,1755377438823,-500.0,0.00020158,2]
[379703887,1755377438832,-480.0,0.00020158,2]
[379703889,1755377438841,-480.0,0.00020158,2]
[379703891,1755377438851,-500.0,0.00020158,2]
[379703893,1755377438860,-480.0,0.00020158,2]
[379703895,1755377438869,-249.2830476,0.00020158,2]
[379703897,1755377438878,-480.0,0.00020158,2]
[379703899,1755377438888,-480.0,0.00020158,2]
[379703901,1755377438897,-480.0,0.00020158,2]
[379703903,1755377438907,-480.0,0.00020158,2]
[379703905,1755377438916,-480.0,0.00020158,2]
[379703907,1755377438926,-480.0,0.00020158,2]
[379703909,1755377438935,-441.23403783,0.00020158,2]
[379703911,1755377438944,-480.0,0.00020158,2]
[379703913,1755377438953,-480.0,0.00020158,2]
[379703915,1755377438962,-480.0,0.00020158,2]
[379703917,1755377438971,-480.0,0.00020158,2]
[379703919,1755377438981,-480.0,0.00020158,2]
[379703921,1755377438990,-480.0,0.00020158,2]
[379703923,1755377438999,-461.73507871,0.00020158,2]
[379703925,1755377439008,-1272.27,0.00020158,2]
[379703927,1755377439017,-343.4496198,0.00020158,2]
[379703928,1755377439026,-480.0,0.00020158,2]
[379703929,1755377439035,-480.0,0.00020158,2]
[379703930,1755377439044,-461.74482411,0.00020158,2]
[379703931,1755377439053,-480.0,0.00020158,2]
[379703932,1755377439062,-480.0,0.00020158,2]
[379703933,1755377439071,-480.0,0.00020158,2]
[379703934,1755377439081,-480.0,0.00020158,2]
[379703935,1755377439090,-1581.69,0.00020158,2]
[379703936,1755377439099,-460.20282077,0.00020158,2]
[379703937,1755377439108,-484.98184861,0.00020158,2]
[379703938,1755377439117,-440.0,0.00020158,2]
[379703939,1755377439126,-480.0,0.00020158,2]
[379703940,1755377439135,-480.0,0.00020158,2]
[379703941,1755377439144,-624.61,0.00020158,2]
[379703942,1755377439153,-694.75,0.00020158,2]
[379703943,1755377439162,-480.0,0.00020158,2]
[379703944,1755377439171,-480.0,0.00020158,2]
[379703945,1755377439332,-460.0,0.00020158,2]
[379703946,1755377439343,-480.0,0.00020158,2]
[379703947,1755377439352,-460.0,0.00020158,2]
[379703948,1755377439361,-480.0,0.00020158,2]
[379703949,1755377439371,-480.0,0.00020158,2]
[379703950,1755377439380,-447.8024199,0.00020158,2]
[379703951,1755377439389,-480.0,0.00020158,2]
[379703952,1755377439398,-480.0,0.00020158,2]
[379703953,1755377439407,-480.0,0.00020158,2]
[379703954,1755377439417,-541.32,0.00020158,2]
[379703955,1755377439426,-480.0,0.00020158,2]
[379703956,1755377439435,-480.0,0.00020158,2]
[379703957,1755377439445,-1710.57,0.00020158,2]
[379703958,1755377439454,-480.0,0.00020158,2]
[379703959,1755377439462,-235.69903153,0.00020158,2]
[379703960,1755377439471,-498.82,0.00020158,2]
[379703961,1755377439481,-480.0,0.00020158,2]
[379703962,1755377439490,-631.87,0.00020158,2]
[379703963,1755377439499,-440.0,0.00020158,2]
[379703964,1755377439507,-480.0,0.00020158,2]
[379703965,1755377439516,-480.0,0.00020158,2]
[379703966,1755377439525,-480.0,0.00020158,2]
[379703967,1755377439534,-480.0,0.00020158,2]
[379703968,1755377439544,-440.0,0.00020158,2]
[379703969,1755377439553,-480.0,0.00020158,2]
[379703970,1755377439562,-480.0,0.00020158,2]
[379703971,1755377439571,-480.0,0.00020158,2]
[379703972,1755377439581,-480.0,0.00020158,2]
[379703973,1755377439590,-480.0,0.00020158,2]
[379703974,1755377439599,-480.0,0.00020158,2]
[379703975,1755377439607,-719.38,0.00020158,2]
[379703976,1755377439617,-873.1,0.00020158,2]
[379703977,1755377439626,-480.0,0.00020158,2]
[379703978,1755377439636,-480.0,0.00020158,2]
[379703979,1755377439645,-480.0,0.00020158,2]
[379703980,1755377439654,-480.0,0.00020158,2]
[379703981,1755377439663,-480.0,0.00020158,2]
[379703982,1755377439672,-465.34076484,0.00020158,2]
[379703983,1755377439681,-480.0,0.00020158,2]
[379703984,1755377439690,-1231.06,0.00020158,2]
[379703985,1755377439699,-480.0,0.00020158,2]
[379703986,1755377439709,-480.0,0.00020158,2]
[379703987,1755377439723,-480.0,0.00020158,2]
[379703988,1755377439731,-480.0,0.00020158,2]
[379703989,1755377439741,-480.0,0.00020158,2]
[379703990,1755377439750,-462.23154183,0.00020158,2]
[379703991,1755377439760,-480.0,0.00020158,2]
[379703992,1755377439769,-1046.39,0.00020158,2]
[379703993,1755377439778,-480.0,0.00020158,2]
[379703994,1755377439787,-480.0,0.00020158,2]
[379703995,1755377439797,-480.0,0.00020158,2]
[379703996,1755377439806,-480.0,0.00020158,2]
[379703997,1755377439815,-480.0,0.00020158,2]
[379703998,1755377439824,-279.1726966,0.00020158,2]
[379703999,1755377439833,-577.35,0.00020158,2]
[379704000,1755377439842,-480.0,0.00020158,2]
[379704001,1755377439852,-480.0,0.00020158,2]
[379704002,1755377439860,-480.0,0.00020158,2]
[379704003,1755377439869,-501.27,0.00020158,2]
[379704004,1755377439878,-480.0,0.00020158,2]
[379704005,1755377439887,-462.45428824,0.00020158,2]
[379704006,1755377439896,-480.0,0.00020158,2]
[379704007,1755377439905,-480.0,0.00020158,2]
[379704008,1755377439913,-448.98426133,0.00020158,2]
[379704009,1755377439922,-629.32213063,0.00020158,2]
[379704010,1755377439931,-480.0,0.00020158,2]
[379704012,1755377439940,-480.0,0.00020158,2]
[379704013,1755377439949,-480.0,0.00020158,2]
[379704014,1755377439958,-480.0,0.00020158,2]
[379704015,1755377439967,-357.46778735,0.00020158,2]
[379704016,1755377439976,-480.0,0.00020158,2]
[379704017,1755377439985,-480.0,0.00020158,2]
[379704018,1755377439995,-480.0,0.00020158,2]
[379704019,1755377440003,-460.0,0.00020158,2]
[379704020,1755377440012,-480.0,0.00020158,2]
[379704021,1755377440021,-480.0,0.00020158,2]
[379704022,1755377440030,-480.0,0.00020158,2]
[379704023,1755377440039,-801.97,0.00020158,2]
[379704024,1755377440048,-1220.35,0.00020158,2]
[379704025,1755377440057,-480.0,0.00020158,2]
[379704026,1755377440066,-1111.61,0.00020158,2]
[379704027,1755377440075,-471.93264866,0.00020158,2]
[379704028,1755377440083,-2109.62,0.00020158,2]
[379704029,1755377440093,-480.0,0.00020158,2]
[379704030,1755377440102,-480.0,0.00020158,2]
[379704031,1755377440112,-1095.32,0.00020158,2]
[379704032,1755377440122,-460.0,0.00020158,2]
[379704033,1755377440130,-480.0,0.00020158,2]
[379704034,1755377440140,-480.0,0.00020158,2]
[379704035,1755377440149,-480.0,0.00020158,2]
[379704036,1755377440158,-460.0,0.00020158,2]
[379704037,1755377440167,-866.67,0.00020158,2]
[379704038,1755377440175,-480.0,0.00020158,2]
[379704039,1755377440185,-480.0,0.00020158,2]
[379704040,1755377440194,-209.86516047,0.00020158,2]
[379704041,1755377440203,-480.0,0.00020158,2]
[379704042,1755377440213,-758.03,0.00020158,2]
[379704043,1755377440222,-480.0,0.00020158,2]
[379704044,1755377440231,-480.0,0.00020158,2]
[379704045,1755377440240,-757.7,0.00020158,2]
[379704046,1755377440249,-440.0,0.00020158,2]
[379704047,1755377440259,-460.0,0.00020158,2]
[379704048,1755377440268,-480.0,0.00020158,2]
[379704049,1755377440277,-480.0,0.00020158,2]
[379704050,1755377440286,-460.0,0.00020158,2]
[379704051,1755377440296,-480.0,0.00020158,2]
[379704052,1755377440305,-480.0,0.00020158,2]
[379704053,1755377440315,-480.0,0.00020158,2]
[379704054,1755377440324,-480.0,0.00020158,2]
[379704055,1755377440333,-440.0,0.00020158,2]
[379704056,1755377440342,-480.0,0.00020158,2]
[379704057,1755377440351,-480.0,0.00020158,2]
[379704058,1755377440359,-480.0,0.00020158,2]
[379704059,1755377440369,-480.0,0.00020158,2]
[379704060,1755377440378,-6017.76,0.00020158,2]
[379704061,1755377440386,-480.0,0.00020158,2]
[379704062,1755377440396,-480.0,0.00020158,2]
[379704063,1755377440405,-1828.0,0.00020158,2]
[379704064,1755377440415,-480.0,0.00020158,2]
[379704065,1755377440424,-480.0,0.00020158,2]
[379704067,1755377440433,-480.0,0.00020158,2]
[379704069,1755377440442,-504.7,0.00020158,2]
[379704071,1755377440451,-480.0,0.00020158,2]
[379704073,1755377440460,-480.0,0.00020158,2]
[379704074,1755377440470,-480.0,0.00020158,2]
[379704075,1755377440478,-460.0,0.00020158,2]
[379704076,1755377440488,-480.0,0.00020158,2]
[379704077,1755377440497,-1067.99,0.00020158,2]
[379704078,1755377440506,-1328.49,0.00020158,2]
[379704079,1755377440516,-480.0,0.00020158,2]
[379704080,1755377440525,-542.05,0.00020158,2]
[379704081,1755377440534,-480.0,0.00020158,2]
[379704082,1755377440543,-480.0,0.00020158,2]
[379704083,1755377440552,-480.0,0.00020158,2]
[379704084,1755377440562,-462.55166263,0.00020158,2]
[379704085,1755377440571,-480.0,0.00020158,2]
[379704086,1755377440581,-466.23268704,0.00020158,2]
[379704087,1755377440590,-480.0,0.00020158,2]
[379704089,1755377440600,-384.82527584,0.00020158,2]
[379704091,1755377440609,-480.0,0.00020158,2]
[379704093,1755377440618,-480.0,0.00020158,2]
[379704095,1755377440628,-480.0,0.00020158,2]
[379704097,1755377440637,-480.0,0.00020158,2]
[379704099,1755377440646,-763.06,0.00020158,2]
[379704101,1755377440655,-480.0,0.00020158,2]
[379704103,1755377440664,-480.0,0.00020158,2]
[379704104,1755377440673,-480.0,0.00020158,2]
[379704106,1755377440682,-480.0,0.00020158,2]
[379704108,1755377440691,-487.86,0.00020158,2]
[379704110,1755377440701,-515.9,0.00020158,2]
[379704112,1755377440710,-515.9,0.00020158,2]
[379704114,1755377440725,-480.0,0.00020158,2]
[379704116,1755377440734,-460.0,0.00020158,2]
[379704118,1755377440744,-480.0,0.00020158,2]
[379704120,1755377440754,-460.0,0.00020158,2]
[379704122,1755377440763,-1131.85,0.00020158,2]
[379704124,1755377440773,-480.0,0.00020158,2]
[379704126,1755377440782,-480.0,0.00020158,2]
[379704128,1755377440791,-287.59406404,0.00020158,2]
[379704130,1755377440800,-480.0,0.00020158,2]
[379704132,1755377440810,-480.0,0.00020158,2]
[379704134,1755377440818,-480.0,0.00020158,2]
[379704136,1755377440828,-480.0,0.00020158,2]
[379704138,1755377440837,-480.0,0.00020158,2]
[379704140,1755377440846,-480.0,0.00020158,2]
[379704142,1755377440855,-391.07781029,0.00020158,2]
[379704144,1755377440864,-480.0,0.00020158,2]
[379704146,1755377440873,-480.0,0.00020158,2]
[379704148,1755377440882,-480.0,0.00020158,2]
[379704150,1755377440891,-460.35394778,0.00020158,2]
[379704152,1755377440901,-480.0,0.00020158,2]
[379704154,1755377440910,-993.99,0.00020158,2]
[379704156,1755377440919,-723.33,0.00020158,2]
[379704158,1755377440928,-464.21858737,0.00020158,2]
[379704160,1755377440938,-480.0,0.00020158,2]
[379704162,1755377440946,-1209.54,0.00020158,2]
[379704164,1755377440955,-872.26,0.00020158,2]
[379704166,1755377440964,-480.0,0.00020158,2]
[379704168,1755377440973,-460.0,0.00020158,2]
[379704170,1755377440983,-480.0,0.00020158,2]
[379704172,1755377440993,-480.0,0.00020158,2]
[379704174,1755377441002,-480.0,0.00020158,2]
[379704176,1755377441011,-259.56278345,0.00020158,2]
[379704178,1755377441020,-460.0,0.00020158,2]
[379704179,1755377441030,-480.0,0.00020158,2]
[379704181,1755377441040,-795.91,0.00020158,2]
[379704183,1755377441049,-460.0,0.00020158,2]
[379704185,1755377441058,-622.7,0.00020158,2]
[379704188,1755377441068,-1312.48,0.00020158,2]
[379704190,1755377441077,-480.0,0.00020158,2]
[379704191,1755377441086,-460.40062225,0.00020158,2]
[379704193,1755377441096,-480.0,0.00020158,2]
[379704195,1755377441105,-480.0,0.00020158,2]
[379704197,1755377441114,-1015.01,0.00020158,2]
[379704199,1755377441123,-535.29,0.00020158,2]
[379704201,1755377441134,-772.23,0.00020158,2]
[379704203,1755377441143,-480.0,0.00020158,2]
[379704205,1755377441153,-460.0,0.00020158,2]
[379704207,1755377441162,-1030.57,0.00020158,2]
[379704209,1755377441171,-480.0,0.00020158,2]
[379704211,1755377441181,-503.55841545,0.00020158,2]
[379704213,1755377441190,-1332.15,0.00020158,2]
[379704215,1755377441199,-829.02,0.00020158,2]
[379704217,1755377441208,-462.47985447,0.00020158,2]
[379704219,1755377441218,-480.0,0.00020158,2]
[379704221,1755377441227,-793.16,0.00020158,2]
[379704223,1755377441237,-480.0,0.00020158,2]
[379704225,1755377441248,-480.0,0.00020158,2]
[379704227,1755377441258,-480.76429998,0.00020158,2]
[379704229,1755377441268,-480.0,0.00020158,2]
[379704231,1755377441278,-515.62,0.00020158,2]
[379704233,1755377441288,-480.0,0.00020158,2]
[379704235,1755377441297,-480.0,0.00020158,2]
[379704237,1755377441307,-460.0,0.00020158,2]
[379704239,1755377441317,-480.0,0.00020158,2]
[379704241,1755377441327,-1288.62,0.00020158,2]
[379704243,1755377441336,-1288.62,0.00020158,2]
[379704245,1755377441346,-480.0,0.00020158,2]
[379704247,1755377441355,-1288.62,0.00020158,2]
[379704249,1755377441365,-480.0,0.00020158,2]
[379704251,1755377441375,-1288.62,0.00020158,2]
[379704253,1755377441385,-480.0,0.00020158,2]
[379704255,1755377441394,-1288.62,0.00020158,2]
[379704257,1755377441405,-923.85,0.00020158,2]
[379704259,1755377441414,-1288.62,0.00020158,2]
[379704261,1755377441424,-480.0,0.00020158,2]
[379704263,1755377441435,-442.91329562,0.00020158,2]
[379704265,1755377441445,-510.45,0.00020158,2]
[379704267,1755377441455,-617.19,0.00020158,2]
[379704269,1755377441465,-617.19,0.00020158,2]
[379704271,1755377441475,-617.19,0.00020158,2]
[379704273,1755377441485,-617.19,0.00020158,2]
[379704275,1755377441496,-480.0,0.00020158,2]
[379704277,1755377441506,-480.0,0.00020158,2]
[379704278,1755377441515,-617.19,0.00020158,2]
[379704279,1755377441525,-617.19,0.00020158,2]